[Event "61st Mongolian-ch Open 2023"]
[Site "Khovd"]
[Date "2023.05.24"]
[Round "5.5"]
[White "Munkhgal, Gombosuren"]
[Black "Gan-Erdene, Sugar"]
[Result "1-0"]
[ECO "E49"]
[WhiteElo "2463"]
[BlackElo "2420"]
[Annotator "TA"]
[PlyCount "141"]
[EventDate "2023.05.22"]
[EventType "tourn"]
[EventCountry "MGL"]
[SourceTitle "playchess.com"]
[Source "ChessBase"]
[SourceQuality "1"]
[TimeControl "40/5400+30:1800+30"]

{[%evp 20,141,25,-20,5,11,62,50,75,63,93,76,129,139,138,77,87,100,88,84,117,83,112,105,117,87,124,114,189,183,205,193,187,173,202,173,162,132,180,188,240,232,316,291,257,298,615,604,532,305,266,278,295,276,357,351,347,320,420,417,414,398,435,435,461,321,318,243,313,283,528,375,3402,223,223,227,222,223,231,223,222,222,271,240,240,240,240,240,240,238,238,238,281,259,260,259,299,233,234,212,194,0,220,218,343,335,757,512,805,788,787,803,777,785,672,651,29967,29967,29969,29970,29968,29969,12321,12321]} 1. d4 {[%emt 0:00:03]} Nf6 {[%emt 0:00:07]} 2. c4 {[%emt 0:00:04]} e6 {[%emt 0:00:18]} 3. Nc3 {[%emt 0:00:31]} Bb4 {[%emt 0:00:22]} 4. a3 {[%emt 0:01:14]} Bxc3+ {[%emt 0:01:06]} 5. bxc3 {[%emt 0:00:06]} O-O {[%emt 0:03:02]} 6. e3 {[%emt 0:00:30]} d5 {[%emt 0:01:52]} 7. Bd3 {[%emt 0:00:27]} c5 {[%emt 0:07:17]} 8. Ne2 {[%emt 0:01:25]} dxc4 {[%emt 0:02:33]} 9. Bxc4 {[%emt 0:00:14]} Qc7 {[%emt 0:00:08]} 10. Bd3 {[%emt 0:00:40]} e5 {[%emt 0:04:32]} 11. O-O {[%emt 0:00:31]} e4 {[%emt 0:06:40] E49: Nimzo-Indian: Rubinstein: 5 Bd3 d5 6 a3 Bxc3+ 7 bxc3.} 12. Bb1 {[%emt 0:01:20]} b6 {[%emt 0:02:50]} ({Don't take} 12... Ng4 13. Ng3 $16 (13. Bxe4 $2 Qxh2#)) ({Black should play} 12... Nc6 $11) 13. Ng3 $14 {[%emt 0:00:57]} Bb7 {[%emt 0:06:26] [#] White is slightly better.} 14. f3 $146 {[%emt 0:02:58][%cal Rf3e4]} ({Predecessor:} 14. a4 Nbd7 15. f4 Rfe8 16. Ba2 cxd4 17. cxd4 Bd5 18. Nf5 g6 19. Ng3 Bxa2 20. Rxa2 Rac8 21. f5 g5 22. Nh5 Qc4 23. Raf2 Qd3 24. Nxf6+ Nxf6 25. Qe1 Rc3 {0-1 Krnicnuj-Noseda,J Latin Am corr 1986}) 14... exf3 {[%emt 0:12:25]} 15. e4 $1 {[%emt 0:04:25]} cxd4 {[%emt 0:03:07]} (15... Nc6 $142) 16. cxd4 $16 {[%emt 0:14:29]} Nc6 {[%emt 0:15:09]} 17. gxf3 {[%emt 0:03:03]} ({White should try} 17. Bb2 $1) 17... Rad8 {[%emt 0:01:19]} 18. d5 {[%emt 0:05:10] Strongly threatening Qc2.} Ne5 {[%emt 0:00:17]} 19. Bb2 {[%emt 0:00:43] Prevents Qc3.} Ng6 {[%emt 0:01:58]} 20. Bd3 {[%emt 0:07:41][%cal Bb1d3,Bd3b5,Bb5a6][%mdl 32]} Bc8 {[%emt 0:01:46]} 21. Qc1 {[%emt 0:04:55]} Qd6 {[%emt 0:02:25]} 22. Bb5 {[%emt 0:03:51]} Bh3 {[%emt 0:00:36]} 23. Rf2 {[%emt 0:01:58]} Qe7 {[%emt 0:08:08]} (23... Rc8 $16 24. Qe3 Rfd8) 24. a4 $18 {[%emt 0:06:58]} Rc8 {[%emt 0:06:09] [#]} 25. Qd2 {[%emt 0:00:30]} Rfd8 {[%emt 0:01:20]} 26. Ba6 {[%emt 0:03:44] This pair of bishops is nice.} Rc5 {[%emt 0:00:46]} 27. Ba3 {[%emt 0:07:15][%cal Bb2a3,Ba3b4,Bb4c3][%mdl 32]} Qe5 {[%emt 0:00:34]} 28. Rd1 {[%emt 0:00:25]} Ra5 {[%emt 0:01:38] [#]} (28... Rc7 $16 29. d6 Rc6) 29. Bb5 $1 {[%emt 0:04:57]} Bd7 {[%emt 0:04:43]} (29... a6 $142) 30. Bb4 {[%emt 0:03:32]} Rxa4 {[%emt 0:04:26]} 31. Bxa4 {[%emt 0:00:27]} Bxa4 {[%emt 0:00:03]} 32. Bc3 {[%emt 0:00:45]} Qe8 {[%emt 0:01:30]} (32... Qf4 33. Ra1 b5) 33. Ra1 {[%emt 0:00:46]} b5 {[%emt 0:00:20]} 34. Nf5 {[%emt 0:00:45]} Nh5 {[%emt 0:00:53]} 35. Qd4 {[%emt 0:00:50][%csl LRa7,LRg7]} f6 {[%emt 0:00:22]} 36. Qxa7 {[%emt 0:01:22]} Ngf4 {[%emt 0:00:17]} 37. Kh1 {[%emt 0:00:30]} Rd7 {[%emt 0:00:15]} 38. Qd4 {[%emt 0:00:55]} Rc7 {[%emt 0:00:56]} 39. d6 {[%emt 0:03:14]} Rd7 {[%emt 0:00:48]} 40. Rd2 {[%emt 0:00:00]} Qe6 {[%emt 0:00:00]} 41. Rg1 {[%emt 0:06:24] Prevents h6.} Kf7 {[%emt 0:02:42]} 42. Qc5 {[%emt 0:03:09]} Qc4 {[%emt 0:03:22]} 43. Bb4 {[%emt 0:08:04]} g6 {[%emt 0:05:13]} 44. Ne3 {[%emt 0:02:44]} Qe6 {[%emt 0:00:14]} (44... Qxc5 45. Bxc5 Ne6) 45. Ng4 {[%emt 0:02:44]} Qb3 $2 {[%emt 0:01:47]} (45... Qc4 46. Rc1 Qxc5 47. Rxc5 Bb3) 46. Qc3 $2 {[%emt 0:01:15]} (46. Nh6+ Kg7 47. Nf5+ Kf7 48. Qc8) 46... Qxc3 {[%emt 0:00:50]} 47. Bxc3 {[%emt 0:00:01]} Bb3 {[%emt 0:00:13]} 48. Ne3 {[%emt 0:01:31]} Bc4 {[%emt 0:04:49]} 49. Nxc4 {[%emt 0:02:50]} bxc4 {[%emt 0:01:06]} 50. Ra1 {[%emt 0:00:02]} Ke6 {[%emt 0:02:18]} 51. Kg1 {[%emt 0:03:14]} Nd3 {[%emt 0:11:16]} 52. Ra4 {[%emt 0:00:50]} Rxd6 {[%emt 0:01:11]} 53. Rxc4 {[%emt 0:00:23]} Nhf4 {[%emt 0:00:09]} 54. Rd4 {[%emt 0:02:31]} Rxd4 {[%emt 0:01:49]} 55. Bxd4 {[%emt 0:00:02][%mdl 4096] Endgame KRB-KNN} f5 {[%emt 0:00:54]} 56. exf5+ {[%emt 0:04:04]} Kxf5 {[%emt 0:00:04]} 57. Be3 {[%emt 0:00:08]} Ne5 {[%emt 0:00:57]} 58. Kf2 {[%emt 0:00:48]} Nfd3+ {[%emt 0:00:09]} 59. Ke2 {[%emt 0:01:18]} Nc1+ {[%emt 0:00:17]} 60. Kf2 {[%emt 0:04:21]} Ncd3+ {[%emt 0:00:05]} 61. Kg3 {[%emt 0:01:14] Black must now prevent f4.} h5 {[%emt 0:01:10]} (61... g5 {was worth a try.} 62. Bd4 h5 63. Bxe5 h4+ 64. Kg2 Nxe5) 62. h4 {[%emt 0:00:51]} Ne1 $2 {[%emt 0:00:13]} (62... Nb4 63. Rd8 Ke6 64. Re8+ Kf5) 63. Rd4 {[%emt 0:02:06] Hoping for Bd2.} Ke6 {[%emt 0:01:05]} (63... Nc2 $142 64. Rf4+ Ke6) 64. f4 {[%emt 0:01:02][%cal Od4e4] White threatens Re4! and mate.} Ng4 {[%emt 0:00:39]} 65. Bd2 {[%emt 0:00:48]} Nc2 {[%emt 0:00:05]} 66. Rc4 {[%emt 0:00:04]} Na1 {[%emt 0:00:48]} 67. Rc3 {[%emt 0:00:47] White wants to mate with Bc1.} Kf5 {[%emt 0:00:32]} 68. Bc1 {[%emt 0:00:54]} Nf6 {[%emt 0:00:09]} 69. Rc5+ {[%emt 0:01:42]} Ke4 {[%emt 0:00:50]} 70. Bb2 {[%emt 0:00:17][%csl LRa1,LRf6]} Nb3 {[%emt 0:00:07]} 71. Rb5 {[%emt 0:05:42] Weighted Error Value: White=0.35/Black=0.42} 1-0

[Event "61st Mongolian-ch Open 2023"]
[Site "Khovd"]
[Date "2023.05.24"]
[Round "5.6"]
[White "Bulgankhan Ganzorig"]
[Black "Bilguun, Sumiya"]
[Result "1-0"]
[ECO "E04"]
[WhiteElo "2017"]
[BlackElo "2474"]
[Annotator "TA"]
[PlyCount "80"]
[EventDate "2023.05.22"]
[EventType "tourn"]
[EventCountry "MGL"]
[SourceTitle "playchess.com"]
[Source "ChessBase"]
[SourceQuality "1"]
[TimeControl "40/5400+30:1800+30"]

{[%evp 17,80,-39,0,-10,-5,-16,-21,-21,-27,-14,-24,-80,-104,-111,-102,-128,-99,-151,-139,-233,-128,-300,-283,-383,-389,-381,-226,-236,-213,-260,-236,-245,-181,-168,-67,-46,-71,-77,-11,-194,-90,-87,-87,-81,-86,-90,-79,-93,-79,-100,-70,-72,-60,-66,-64,-76,-43,-52,-48,-54,-40,-35,-35,-57,-41]} 1. d4 {[%emt 0:00:51]} d5 {[%emt 0:00:06]} 2. c4 {[%emt 0:00:10]} e6 {[%emt 0:00:04]} 3. Nf3 {[%emt 0:00:06]} a6 {[%emt 0:00:03]} 4. g3 {[%emt 0:02:33]} dxc4 {[%emt 0:03:31]} 5. Bg2 {[%emt 0:00:09]} b5 {[%emt 0:00:11]} 6. Ne5 {[%emt 0:01:16]} c6 {[%emt 0:00:19]} 7. a4 {[%emt 0:03:18]} Bb7 {[%emt 0:00:43]} 8. Nc3 {[%emt 0:00:09]} Nf6 {[%emt 0:02:30]} 9. O-O {[%emt 0:00:28]} Nd5 {[%emt 0:03:45]} 10. Ne4 {[%emt 0:15:26] And now Ng5 would win. E04: Open Catalan: 5 Nf3.} Be7 {[%emt 0:01:24] Prevents Ng5} 11. Nc5 {[%emt 0:11:16]} Bxc5 {[%emt 0:15:55]} 12. dxc5 {[%emt 0:00:17] [#] The position is equal.} O-O $146 {[%emt 0:05:25]} ({Predecessor:} 12... Qe7 13. b3 {½-½ Miroiu,G (2337)-Aldea,L (2340) ROM-chTA Olanesti 2012 (5.2)}) 13. e4 {[%emt 0:04:10]} Nb4 {[%emt 0:09:18]} 14. Qg4 {[%emt 0:02:12]} (14. b3 $11 {keeps the balance.}) 14... Qe7 $1 $17 {[%emt 0:00:33]} (14... Qd4 15. Nf3 Qd7 16. e5 $14) 15. Bd2 {[%emt 0:04:17] Inhibits f6.} (15. Bh6 $2 f6 16. Nf3 (16. Bd2 $2 Nc2 $19) 16... Nd7 $19) 15... a5 {[%emt 0:00:21]} (15... Qxc5 16. Bc3 g6 17. Qf4 $16) 16. Bh3 {[%emt 0:16:42]} Re8 $1 {[%emt 0:13:02]} (16... Qxc5 17. Bc3 h5 18. Qxg7+ (18. Qxh5 Nd3 $11) 18... Kxg7 19. Nd7+ (19. Nxc4+ $2 Kg8 $19) 19... Kg8 20. Nxc5 $16) 17. Bc3 {[%emt 0:14:30]} (17. Rad1 $142) 17... f6 {[%emt 0:02:26]} 18. Nf3 {[%emt 0:02:44]} (18. Nxc6 $17 N8xc6 19. axb5) 18... Nd7 {[%emt 0:01:25]} (18... Qxc5 19. Bxf6 Qf8 20. Bc3 $14) (18... Nd3 $1 $19 {Hoping for ...b4.} 19. axb5 cxb5) 19. Rfd1 $2 {[%emt 0:03:34]} (19. axb5 $17 {is a better defense.} cxb5 20. Bxb4 axb4 21. c6 (21. Rxa8 $2 Bxa8 22. c6 Nc5 $19) 21... Bxc6 22. Nd4 Rxa1 23. Rxa1) 19... Nxc5 $19 {[%emt 0:06:04]} 20. axb5 {[%emt 0:00:12]} cxb5 {[%emt 0:11:46]} 21. Rxa5 {[%emt 0:00:28]} Nbd3 {[%emt 0:06:55] Excellent horsemanship.} ({Weaker is} 21... Nxe4 22. Rxa8 Bxa8 23. Qxe6+ Qxe6 24. Bxe6+ Rxe6 25. Rd8+ Kf7 26. Bxb4 $15) (21... Rxa5 $142 22. Bxb4 Ra4 23. Bxc5 {[%mdl 64] Remove Defender} Qxc5) 22. Rxb5 {[%emt 0:08:47]} Bxe4 {[%emt 0:00:06] White must now prevent ...f5.} ({Inferior is} 22... Nxe4 23. Qxe6+ Qxe6 24. Bxe6+ Rxe6 25. Rxb7 $17) 23. Nd2 {[%emt 0:01:46]} f5 {[%emt 0:01:04]} 24. Qh5 {[%emt 0:02:06]} Bd5 {[%emt 0:00:34]} 25. Bg2 {[%emt 0:00:30]} Qd7 {[%emt 0:04:42]} (25... Bxg2 $19 26. Kxg2 Qd7 27. Rxc5 Nxc5 28. Nxc4 Qe7) 26. Rxc5 $15 {[%emt 0:03:34]} Nxc5 {[%emt 0:00:58]} 27. Nxc4 {[%emt 0:00:07] [#]} Na4 {[%emt 0:06:28] Dodges Nb6} ({Black should try} 27... Rab8 $1 $17) 28. Ne5 $2 {[%emt 0:00:16]} (28. Be5 $1 $11 {and White is okay.}) 28... Qb7 {[%emt 0:02:10]} (28... Qc7 $19 {and Black stays clearly on top.} 29. Bd4 Bxg2 30. Kxg2 Nc5) 29. Bxd5 $17 {[%emt 0:01:26]} exd5 {[%emt 0:00:05]} 30. Bd4 {[%emt 0:00:04] [#]} Nc5 $1 {[%emt 0:00:42][%mdl 64] Deflection} 31. Qxf5 {[%emt 0:00:37]} Ne6 {[%emt 0:00:29]} 32. Nf3 {[%emt 0:00:50]} Rad8 {[%emt 0:02:10]} 33. Ng5 {[%emt 0:00:41]} Nxg5 {[%emt 0:00:36]} (33... g6 {is more complex.} 34. Qe5 Nxd4 35. Qxd4 Qg7) 34. Qxg5 {[%emt 0:00:06]} h6 {[%emt 0:00:11]} 35. Qd2 {[%emt 0:00:34]} Re4 {[%emt 0:00:46]} 36. h4 {[%emt 0:01:34]} Qf7 {[%emt 0:00:29]} 37. Qd3 {[%emt 0:00:43] Black is slightly better.} Qe6 {[%emt 0:00:34]} 38. Kg2 {[%emt 0:00:08]} Re2 {[%emt 0:00:38]} 39. b4 {[%emt 0:00:39]} Qe4+ {[%emt 0:00:53]} 40. Qf3 {[%emt 0:00:00]} Ra2 {[%emt 0:01:09][%mdl 32768] And White is the lucky defender. Artfully played by Bulgankhan Ganzorig.   Weighted Error Value: White=0.30/Black=0.30. Loss on time!?} 1-0